bitfinex/quotes_ETHUSD_20250913
["timestamp","ask_amount","ask_price","bid_price","bid_amount"]
[1757735290579,2.2602,4758.0,4756.7,0.3063]
[1757735291486,0.4419,4757.8,4756.4,1.613]
[1757735291685,0.1048,4756.6,4756.4,1.613]
[1757735291889,0.4419,4757.8,4756.6,3.0]
[1757735292085,0.4419,4757.8,4756.6,1.4657935]
[1757735292317,0.4419,4757.8,4756.7,0.3063]
[1757735294234,2.3202,4758.8,4756.7,34.42893232]
[1757735294393,2.3202,4758.8,4756.7,34.68508357]
[1757735294587,0.1068,4756.8,4756.7,35.31708357]
[1757735294824,0.00482069,4756.8,4756.7,35.31708357]
[1757735295262,0.00482069,4756.8,4756.7,41.32925534]
[1757735295411,0.00482069,4756.8,4756.7,41.32828879]
[1757735295802,0.1048,4757.3,4756.8,3.0]
[1757735296120,0.1048,4757.3,4757.2,0.3076]
[1757735296294,0.1048,4757.3,4757.2,33.3076]
[1757735296490,2.4288,4758.3,4757.2,1.77049058]
[1757735296705,0.4445,4758.2,4757.6,0.73151193]
[1757735296906,2.16141232,4758.8,4757.2,0.73151193]
[1757735296907,0.3065,4757.7,4757.2,0.73151193]
[1757735297111,2.8733,4757.6,4757.0,0.73151193]
[1757735297393,0.3065,4757.1,4756.7,0.73151193]
[1757735297624,2.8733,4757.0,4756.6,0.73151193]
[1757735297823,0.002,4756.8,4756.6,0.73151193]
[1757735298133,3.1798,4756.7,4756.6,0.73151193]
[1757735298303,0.002,4756.8,4756.3,1.11829263]
[1757735298503,0.002,4756.8,4756.6,1.09726789]
[1757735298802,0.002,4756.8,4755.9,6.10189058]
[1757735298803,0.002,4756.8,4756.5,1.09726789]
[1757735299043,0.002,4756.8,4756.1,3.0]
[1757735299044,0.002,4756.8,4756.6,0.73287751]
[1757735299244,0.002,4756.8,4756.4,0.73287751]
[1757735299447,2.8733,4756.7,4756.4,0.73287751]
[1757735299647,0.3065,4756.5,4756.4,0.73287751]
[1757735300143,3.1798,4756.5,4756.1,1.09726789]
[1757735300341,0.3065,4756.5,4756.4,0.73336305]
[1757735300557,0.3065,4756.5,4756.3,0.73336305]
[1757735300957,2.8733,4756.4,4756.3,0.73336305]
[1757735301273,3.49798,4756.4,4756.1,0.73336305]
[1757735301574,3.49798,4756.4,4755.2,0.001]
[1757735301575,2.8733,4756.3,4755.8,0.73336305]
[1757735301743,0.792,4756.2,4755.6,0.73436305]
[1757735301944,0.3065,4755.7,4755.6,0.001]
[1757735302478,3.1798,4755.7,4755.6,0.73436305]
[1757735302664,3.1798,4755.7,4755.6,0.001]
[1757735303135,3.9718,4755.7,4755.6,0.001]
[1757735303671,6.07453987,4755.7,4755.6,0.001]
[1757735303876,7.09635881,4755.7,4755.6,0.001]
[1757735304438,11.24035881,4755.7,4755.6,0.001]
[1757735305176,11.23935881,4755.7,4755.6,0.001]
[1757735305879,11.23335881,4755.7,4755.6,0.001]
[1757735307336,2.89491674,4755.3,4755.2,0.001]
[1757735307563,4.43882865,4755.3,4755.2,0.001]
[1757735307777,2.89509365,4754.9,4754.8,0.061]
[1757735307971,8.64009365,4754.9,4754.8,0.061]
[1757735308179,11.81989365,4754.9,4754.8,0.061]
[1757735308542,11.81889365,4754.9,4754.8,0.061]
[1757735308873,12.14398958,4754.9,4754.8,0.061]
[1757735309078,5.11789593,4754.9,4754.8,0.061]
[1757735309278,11.34898958,4754.9,4754.8,0.061]
[1757735309485,12.14098958,4754.9,4754.8,0.061]
[1757735310752,8.01298958,4754.9,4754.8,0.061]
[1757735310958,12.13498958,4754.9,4754.8,0.061]
[1757735311949,2.10254527,4756.2,4754.8,0.061]
[1757735311950,0.4445,4755.6,4754.8,0.061]
[1757735312149,4.12,4755.5,4754.8,0.061]
[1757735312350,0.3065,4754.9,4754.8,0.061]
[1757735312656,7.31759365,4754.9,4754.8,0.061]
[1757735313074,9.74639365,4754.9,4754.8,0.061]
[1757735313281,9.27274136,4754.9,4754.8,0.061]
[1757735313476,8.82824136,4754.9,4754.8,0.061]
[1757735313678,4.4225,4754.9,4754.8,0.061]
[1757735313878,0.792,4755.2,4754.8,0.061]
[1757735314102,0.792,4755.0,4754.8,0.061]
[1757735314304,7.00592646,4755.3,4754.8,0.061]
[1757735314508,0.792,4755.1,4754.8,0.061]
[1757735314881,0.792,4755.2,4754.8,0.061]
[1757735315081,0.792,4755.0,4754.8,0.061]
[1757735315483,0.792,4755.0,4754.9,0.3076]
[1757735316187,0.792,4755.0,4754.8,0.061]
[1757735316806,0.792,4755.0,4754.9,0.3076]
[1757735317803,0.1048,4754.9,4754.8,0.061]
[1757735318780,0.1048,4754.9,4754.8,0.3686]
[1757735319016,2.1027851,4755.6,4754.8,0.8352]
[1757735319017,0.792,4755.6,4754.8,0.8352]
[1757735319221,4.087,4755.3,4754.8,0.8352]
[1757735319513,4.088,4755.4,4754.8,0.8352]
[1757735319906,4.088,4755.4,4754.9,0.02103093]
[1757735320688,0.1048,4754.9,4754.8,0.061]
[1757735321124,0.1048,4754.9,4754.8,0.3686]
[1757735322334,2.8401,4754.9,4754.8,0.061]
[1757735322636,3.2846,4754.9,4754.8,0.061]
[1757735322792,0.4113,4754.9,4754.8,0.061]
[1757735322998,0.1048,4754.9,4754.8,0.061]
[1757735323194,0.1048,4754.9,4754.8,0.3686]
[1757735324813,0.1048,4754.9,4754.8,0.061]
[1757735325514,3.5793,4754.9,4754.8,0.061]
[1757735326106,1.2042,4754.9,4754.8,0.061]
[1757735326306,0.8968,4754.9,4754.8,0.061]
[1757735327637,3.9497,4754.9,4754.8,0.061]
[1757735327824,1.1958,4754.9,4754.8,0.061]
[1757735328030,0.8968,4754.9,4754.8,0.061]
[1757735328230,4.051,4755.0,4754.8,0.061]
[1757735329462,1.613,4755.7,4754.9,0.2959]
[1757735329623,4.045,4755.5,4754.9,0.2959]
[1757735329824,1.613,4755.7,4754.9,0.2959]
[1757735330055,4.04,4755.6,4754.9,0.2959]
[1757735330858,4.85641467,4756.3,4754.9,0.2959]
[1757735330859,4.037,4756.0,4755.0,0.02103049]
[1757735331026,4.037,4756.0,4755.1,1.09726789]
[1757735331221,1.613,4756.5,4755.3,1.09726789]
[1757735331454,4.035,4756.4,4755.9,0.2959]
[1757735331844,1.613,4756.5,4755.9,0.2959]
[1757735332153,0.1048,4755.9,4755.4,0.02102872]
[1757735332329,0.1048,4755.4,4755.3,0.02102916]
[1757735332734,0.1048,4755.4,4755.3,0.31692916]
[1757735334725,0.1048,4755.4,4755.3,0.78042916]
[1757735334956,0.1048,4755.4,4755.3,1.41242916]
[1757735335159,0.794,4756.8,4755.4,30.0]
[1757735335160,0.002,4756.8,4755.4,30.0]
[1757735335358,0.002,4756.8,4755.8,1.10314861]
[1757735335525,0.002,4756.8,4756.2,1.10314861]
[1757735335861,0.792,4756.6,4755.9,1.10314861]
[1757735336158,0.794,4756.4,4755.4,1.10314861]
[1757735336360,0.002,4756.4,4755.5,0.02102828]
[1757735336559,0.002,4756.4,4755.5,1.10314861]
[1757735336984,0.002,4756.4,4755.6,1.10314861]
[1757735337279,0.002,4756.4,4755.5,1.10314861]
[1757735337581,2.7539,4756.3,4755.3,3.0]
[1757735337747,2.7539,4756.3,4755.4,0.02102872]
[1757735337947,0.002,4756.4,4755.4,0.02102872]
[1757735338152,0.002,4756.4,4755.4,0.4635]
[1757735338851,0.002,4756.4,4755.4,0.48452872]
[1757735339176,0.002,4756.4,4756.3,0.2959]
[1757735339379,0.002,4756.4,4755.4,1.33645287]
[1757735339886,0.002,4756.4,4755.5,0.02102828]
[1757735340062,0.002,4756.4,4755.4,1.33645287]
[1757735340262,0.002,4756.4,4756.3,0.2959]
[1757735340451,0.002,4756.4,4756.3,8.9599]
[1757735340652,0.002,4756.4,4756.3,11.09767906]
[1757735340854,0.002,4756.4,4756.3,7.04667906]
[1757735341055,0.002,4756.4,4756.3,12.55956964]
[1757735341255,0.002,4756.4,4756.3,11.09667906]
[1757735341470,0.002,4756.4,4756.3,12.55956964]
[1757735341669,0.002,4756.4,4756.3,11.09667906]
[1757735342394,0.002,4756.4,4756.3,11.09567906]
[1757735342606,0.002,4756.4,4756.3,10.45667906]
[1757735343484,0.002,4756.4,4756.3,6.41467906]
[1757735343875,0.002,4756.4,4756.3,4.9089]
[1757735344201,0.002,4756.4,4756.3,8.9459]
[1757735344379,0.002,4756.4,4756.3,4.9089]
[1757735344579,0.002,4756.4,4756.3,8.9419]
[1757735344775,0.002,4756.4,4756.3,4.9089]
[1757735344997,0.002,4756.4,4756.3,8.645]
[1757735345898,3.0549,4756.4,4754.9,4.032]
[1757735346101,2.5888,4756.4,4755.0,0.02103049]
[1757735346396,0.301,4756.4,4755.0,0.02103049]
[1757735346565,0.301,4756.4,4755.1,4.038]
[1757735346566,0.4661,4756.3,4755.1,4.038]
[1757735346767,0.002,4756.4,4755.2,4.037]
[1757735346967,2.7539,4756.2,4755.2,4.037]
[1757735347994,2.7539,4756.2,4754.8,0.061]
[1757735347995,0.299,4755.3,4754.8,0.061]
[1757735348202,2.7539,4755.2,4754.8,0.061]
[1757735348514,0.299,4754.9,4754.8,0.061]
[1757735348982,3.0529,4754.9,4754.8,0.061]
[1757735349866,2.7539,4755.4,4754.8,0.061]
[1757735350903,0.299,4754.9,4754.8,0.061]
[1757735351408,3.0529,4754.9,4754.8,0.061]
[1757735353482,3.8449,4754.9,4754.8,0.061]
[1757735353685,5.94799365,4754.9,4754.8,0.061]
[1757735353901,6.54279301,4754.9,4754.8,0.061]
[1757735354104,10.55279301,4754.9,4754.8,0.061]
[1757735354611,10.56279301,4754.9,4754.8,0.061]
[1757735356591,6.55279301,4754.9,4754.8,0.061]
[1757735356782,10.55379301,4754.9,4754.8,0.061]
[1757735356982,6.55279301,4754.9,4754.8,0.061]
[1757735357292,10.55279301,4754.9,4754.8,0.061]
[1757735357492,8.44969936,4754.9,4754.8,0.061]
[1757735357872,10.55279301,4754.9,4754.8,0.061]
[1757735358066,6.55279301,4754.9,4754.8,0.061]
[1757735358267,3.19159936,4754.9,4754.8,0.061]
[1757735358592,2.5968,4754.9,4754.8,0.061]
[1757735359103,0.01,4754.9,4754.8,0.061]
[1757735359475,2.692,4754.9,4754.8,0.061]
[1757735359807,6.06449365,4754.9,4754.8,0.061]
[1757735359971,3.9614,4754.9,4754.8,0.061]
[1757735360299,8.10243613,4754.9,4754.8,0.061]
[1757735360472,8.56983613,4754.9,4754.8,0.061]
[1757735360674,4.56783613,4754.9,4754.8,0.061]
[1757735360868,8.56883613,4754.9,4754.8,0.061]
[1757735361074,4.56783613,4754.9,4754.8,0.061]
[1757735361302,8.56783613,4754.9,4754.8,0.061]
[1757735361697,4.56783613,4754.9,4754.8,0.061]
[1757735361872,8.56683613,4754.9,4754.8,0.061]
[1757735362073,4.56783613,4754.9,4754.8,0.061]
[1757735362310,4.56783613,4754.9,4754.3,0.001]
[1757735362311,0.792,4754.8,4754.3,0.001]
[1757735362473,0.792,4754.6,4754.3,0.001]
[1757735362678,2.40831482,4754.4,4754.3,0.001]
[1757735362904,4.302,4754.4,4754.3,0.001]
[1757735363106,0.93548361,4754.7,4754.3,0.001]
[1757735363311,0.792,4754.4,4754.3,0.001]
[1757735365189,1.097,4754.4,4754.3,0.001]
[1757735365384,3.484,4754.4,4754.3,0.001]
[1757735365589,3.9514,4754.4,4754.3,0.001]
[1757735366604,3.9614,4754.4,4754.3,0.001]
[1757735366908,9.11235763,4754.4,4754.3,0.001]
[1757735367819,8.64095763,4754.4,4754.3,0.001]
[1757735368323,9.10835763,4754.4,4754.3,0.001]
[1757735369305,1.96895763,4754.4,4754.3,0.001]
[1757735369509,0.01,4754.4,4754.3,0.2872]
[1757735369782,0.01,4755.0,4754.3,0.7367]
[1757735370000,0.01,4755.0,4754.4,0.47053314]
[1757735370221,0.01,4756.3,4754.4,0.47053314]
[1757735370535,2.8564,4756.4,4754.5,0.632]
[1757735370536,2.681,4756.4,4754.5,0.632]
[1757735370741,0.002,4754.9,4754.5,0.632]
[1757735371240,0.002,4754.9,4754.3,3.974]
[1757735371241,0.002,4754.9,4754.8,0.2862]
[1757735372738,0.002,4754.9,4754.3,0.02203359]
[1757735373611,0.002,4754.9,4754.8,0.2862]
[1757735374641,0.002,4754.9,4754.3,0.001]
[1757735374642,0.1048,4754.8,4754.3,0.001]
[1757735374930,2.79282,4754.8,4754.3,0.001]
[1757735375107,3.6464,4754.7,4754.3,0.001]
[1757735375506,2.387,4754.6,4754.3,0.001]
[1757735375808,1.2594,4754.7,4754.3,0.001]
[1757735375809,0.746,4755.4,4754.6,0.2862]
[1757735376133,0.746,4755.4,4754.3,0.001]
[1757735377433,1.50164,4755.4,4754.3,0.001]
[1757735377949,0.746,4755.4,4754.3,0.001]
[1757735378156,2.387,4755.5,4754.3,0.001]
[1757735379269,0.4674,4755.8,4754.4,0.4495]
[1757735379438,0.4674,4755.8,4754.5,0.0210327]
[1757735380057,1.615,4755.9,4754.5,0.0210327]
[1757735380260,1.615,4755.9,4754.6,0.57165327]
[1757735380461,1.615,4755.9,4754.7,0.02103182]
[1757735382263,0.1048,4754.7,4754.6,0.57165327]
[1757735382467,0.1048,4754.7,4754.6,0.2862]
[1757735384174,0.4098,4754.7,4754.3,0.001]
[1757735384466,0.1048,4754.4,4754.3,0.001]
[1757735384836,3.2642,4754.4,4754.3,0.001]
[1757735386448,0.1048,4754.4,4754.3,0.001]
[1757735387051,0.02103729,4754.9,4753.4,3.25021135]
[1757735387251,2.4066,4755.0,4753.5,0.4666]
[1757735387470,2.4066,4755.0,4753.4,3.98650647]
[1757735387471,0.46773729,4754.9,4753.7,3.0]
[1757735387669,3.6453,4754.8,4753.7,3.0]
[1757735387869,0.46773729,4754.7,4753.7,3.0]
[1757735388180,2.4066,4754.6,4753.8,0.0210358]
[1757735388353,0.36663373,4754.5,4753.8,0.0210358]
[1757735388681,0.36663373,4754.5,4753.3,1.614]
[1757735388682,0.02103729,4754.4,4753.4,3.0]
[1757735389177,0.81333373,4754.5,4753.4,3.0]
[1757735389380,0.81333373,4754.5,4753.5,0.02103713]
[1757735389569,2.4066,4754.6,4754.3,0.001]
[1757735389760,2.42763729,4754.6,4754.3,0.001]
[1757735389963,2.4066,4754.6,4754.3,0.001]
[1757735390270,0.2926,4754.4,4754.3,0.001]
[1757735390474,0.31363729,4754.4,4754.3,0.001]
[1757735390783,3.48363102,4754.4,4754.3,0.001]
[1757735392485,2.6992,4754.4,4754.3,0.001]
[1757735392674,0.02103729,4754.8,4754.3,0.001]
[1757735392851,2.42763729,4754.8,4754.3,0.001]
[1757735393077,2.8533,4754.7,4754.3,0.001]
[1757735393279,3.24623373,4754.7,4754.3,0.001]
[1757735393898,0.83963373,4754.7,4754.3,0.001]
[1757735394074,1.613,4754.9,4754.3,0.001]
[1757735394300,0.02103729,4755.2,4754.6,0.3122]
[1757735394492,0.41773729,4755.3,4754.6,0.3122]
[1757735394688,2.4066,4755.5,4754.6,0.3122]
[1757735395401,2.4066,4756.0,4754.7,0.02103182]
[1757735395713,2.4066,4756.0,4754.8,0.4716]
[1757735395879,2.4066,4756.0,4754.9,0.02103093]
[1757735397699,0.4487,4756.4,4754.9,0.02103093]
[1757735397905,0.002,4756.4,4755.8,0.3122]
[1757735399015,0.002,4756.4,4755.8,0.7838]
[1757735399394,0.002,4756.4,4755.8,0.80482695]
[1757735400509,0.002,4756.4,4755.8,1.4158]
[1757735400715,0.1068,4755.9,4755.8,31.84281554]
[1757735401047,0.1068,4755.9,4755.8,36.671739]
[1757735401207,0.1068,4755.9,4755.8,34.84281554]
[1757735401407,0.002,4756.4,4756.0,1.0]
[1757735401620,0.002,4756.9,4756.5,3.0]
[1757735401822,0.002,4756.9,4756.7,3.3122]
[1757735402130,0.002,4756.9,4756.7,33.95602426]
[1757735402334,0.02261982,4756.8,4756.7,37.30352832]
[1757735402500,0.02261982,4756.8,4756.7,37.19872832]
[1757735402828,0.00511952,4756.8,4756.7,37.99072832]
[1757735403630,0.002,4756.9,4756.8,1.53516644]
[1757735403631,1e-08,4756.9,4756.8,1.53516644]
[1757735403828,1e-08,4756.9,4756.8,35.65978897]
[1757735404131,1e-08,4756.9,4756.8,43.66601282]
[1757735404295,1e-08,4756.9,4756.8,39.58087064]
[1757735404498,1e-08,4756.9,4756.8,41.93430231]
[1757735404812,1e-08,4756.9,4756.8,40.11174876]
[1757735405739,0.06,4758.8,4756.9,3.792]
[1757735406035,0.06,4758.8,4757.1,3.792]
[1757735406225,0.06,4758.8,4757.3,4.1042]
[1757735406421,0.06,4758.8,4757.3,34.64322426]
[1757735406621,0.06,4758.8,4757.3,39.62382426]
[1757735406932,0.06,4758.8,4757.3,38.56672732]
[1757735407112,0.06,4758.8,4757.3,40.09362451]
[1757735407545,0.06,4758.8,4757.3,42.41171745]
[1757735408000,0.002,4757.9,4757.3,42.41171745]
[1757735408651,0.002,4757.9,4757.3,43.41171745]
[1757735410265,0.002,4757.9,4757.3,42.41171745]
[1757735410434,0.002,4757.9,4757.3,43.41171745]
[1757735410635,0.002,4757.9,4757.3,42.40871745]
[1757735412545,0.002,4757.9,4757.3,42.51351745]
[1757735413027,0.002,4757.9,4757.3,42.50551745]
[1757735413230,0.002,4757.9,4757.3,42.24142051]
[1757735414460,0.002,4757.9,4757.3,42.50551745]
[1757735414975,0.002,4757.9,4757.3,36.20689319]
[1757735415143,0.002,4757.9,4757.3,32.89469319]
[1757735415340,0.002,4757.9,4757.3,30.734796]
[1757735415341,2.9416,4757.8,4757.3,30.734796]
[1757735415539,2.9416,4757.8,4757.3,37.593796]
[1757735415756,2.4807,4757.8,4757.3,34.593796]
[1757735416077,3.2434,4757.4,4757.3,34.486996]
[1757735416374,3.2434,4757.4,4757.3,30.629996]
[1757735416597,3.2434,4757.4,4757.3,34.486996]
[1757735416744,3.2434,4757.4,4757.3,30.629996]
[1757735416942,3.2434,4757.4,4757.3,34.0144941]
[1757735417177,3.2434,4757.4,4757.3,33.856]
[1757735417379,3.2434,4757.4,4757.0,1.612]
[1757735417554,0.4609,4757.3,4757.1,30.0]
[1757735417760,3.2414,4757.2,4757.1,33.855]
[1757735418078,3.2414,4757.2,4757.1,4.48511906]
[1757735418294,3.2414,4757.2,4757.0,1.612]
[1757735418589,3.2414,4757.2,4756.6,5.041]
[1757735418590,0.4609,4757.1,4756.1,1.611]
[1757735418884,2.9416,4757.0,4756.2,35.474]
[1757735419084,0.2998,4756.3,4756.2,1.611]
[1757735419288,3.2414,4756.3,4756.2,5.472]
[1757735419647,3.2414,4756.3,4756.2,8.472]
[1757735420347,3.2414,4756.3,4756.2,5.472]
[1757735420547,3.2414,4756.3,4756.2,35.472]
[1757735420776,0.002,4757.4,4756.2,39.22775287]
[1757735420980,2.4807,4756.9,4756.3,33.02102474]
[1757735421294,0.002,4757.4,4756.5,3.0]
[1757735421450,0.002,4757.4,4756.7,3.0]
[1757735421788,0.002,4757.4,4756.9,3.0]
[1757735421948,0.002,4757.4,4757.0,33.87902165]
[1757735422143,0.002,4757.4,4757.2,3.0]
[1757735422373,0.002,4757.4,4757.3,6.857]
[1757735422698,0.002,4757.4,4757.3,37.97882732]
[1757735423092,0.002,4757.4,4757.3,38.54462426]
[1757735423590,0.002,4757.4,4757.3,8.54462426]
[1757735423980,0.002,4757.4,4757.3,38.98242426]
[1757735424784,0.002,4757.4,4757.3,34.38592426]
[1757735424942,0.002,4757.4,4757.3,38.53582426]
[1757735425148,0.002,4757.4,4757.3,38.97362426]
[1757735425461,0.002,4757.4,4757.3,39.76562426]
[1757735426770,0.002,4757.4,4757.3,40.39553957]
[1757735427472,0.002,4757.4,4757.3,38.86683957]
[1757735427671,0.002,4757.4,4757.3,30.90584263]
[1757735427863,3.0497,4757.4,4757.3,34.75484263]
[1757735428275,3.0497,4757.4,4757.3,30.90584263]
[1757735428479,3.0497,4757.4,4757.3,33.85]
[1757735428688,3.0497,4757.4,4757.3,30.001]
[1757735428850,3.35467,4757.4,4757.3,3.85]
[1757735429054,3.0497,4757.4,4757.3,0.02202032]
[1757735429251,3.0497,4757.4,4757.3,3.85]
[1757735431777,0.002,4757.4,4757.3,37.12492732]
[1757735432149,0.002,4757.4,4757.3,39.28482451]
[1757735432354,3.0497,4757.4,4757.3,3.27592732]
[1757735432560,3.0497,4757.4,4757.3,6.85]
[1757735432760,3.0497,4757.4,4757.3,36.85]
[1757735433351,2.5902,4757.4,4757.3,36.85]
[1757735433698,0.002,4757.4,4757.3,37.68592426]
[1757735433897,2.10031577,4761.2,4757.3,39.84582145]
[1757735434203,1.612,4760.7,4757.4,33.99784414]
[1757735434363,1.612,4761.4,4757.6,3.0]
[1757735434572,0.19522697,4761.3,4757.8,3.0]
[1757735434877,0.58597204,4761.2,4758.0,3.0]
[1757735435187,1.612,4761.4,4758.2,3.0]
[1757735435391,0.19521343,4761.3,4758.4,3.0]
[1757735435592,0.19521161,4761.2,4758.6,3.0]
[1757735435789,1.612,4761.4,4758.8,3.0]
[1757735436090,1.612,4761.4,4758.9,3.849]
[1757735436091,2.95041354,4761.3,4758.9,3.849]
[1757735436305,3.40665471,4761.2,4759.0,1.612]
[1757735436600,0.2925,4759.1,4759.0,1.612]
[1757735436903,0.752,4759.1,4759.0,8.461]
[1757735438378,3.0477,4759.1,4759.0,3.0]
[1757735438576,3.0477,4759.1,4758.8,0.06]
[1757735438897,2.60047,4759.0,4758.8,0.06]
[1757735439306,3.0477,4758.9,4758.8,0.06]
[1757735444164,3.0497,4758.9,4758.8,0.06]
[1757735444713,6.13883035,4758.9,4758.8,0.06]
[1757735445691,4.03750442,4758.9,4758.8,0.06]
[1757735445895,4.65137491,4758.9,4758.8,0.06]
[1757735446670,6.75270084,4758.9,4758.8,0.06]
[1757735447174,6.73860084,4758.9,4758.8,0.06]
[1757735447374,4.63727491,4758.9,4758.8,0.06]
[1757735447598,6.73860084,4758.9,4758.8,0.06]
[1757735448002,4.63727491,4758.9,4758.8,0.06]
[1757735448175,8.48627491,4758.9,4758.8,0.06]
[1757735449306,8.29047049,4758.9,4758.8,0.06]
[1757735449529,8.48620767,4758.9,4758.8,0.06]
[1757735450216,1.37427049,4758.9,4758.8,0.06]
[1757735450417,0.7604,4758.9,4758.8,0.06]
[1757735450822,0.2945,4758.9,4758.8,0.06]
[1757735453013,3.8773,4758.9,4758.8,0.06]
[1757735454110,0.792,4758.8,4757.3,0.001]
[1757735454300,0.792,4758.6,4757.3,0.001]
[1757735454730,0.792,4758.4,4757.3,0.001]
[1757735455438,3.848,4758.4,4757.3,0.001]
[1757735455625,0.792,4758.3,4757.3,0.4446]
[1757735456130,0.54893,4758.8,4757.3,0.4446]
[1757735456131,3.848,4758.5,4757.3,0.4446]
[1757735456508,0.54893,4758.8,4757.3,0.4446]
[1757735456715,0.4659,4758.6,4757.3,0.4446]
[1757735457745,0.4659,4758.6,4757.3,0.001]
[1757735458807,0.792,4758.5,4757.3,0.001]
[1757735459720,3.848,4758.5,4757.3,0.4446]
[1757735459902,3.848,4758.5,4757.4,0.02101988]
[1757735460102,0.9169413,4758.5,4757.4,0.02101988]
[1757735460336,4.64,4758.7,4757.4,0.02101988]
[1757735460835,0.792,4758.7,4757.4,0.02101988]
[1757735461151,0.002,4758.9,4757.5,0.4436]
[1757735461302,0.002,4758.9,4757.6,1.612]
[1757735461501,0.002,4758.9,4757.8,3.0]
[1757735461736,0.002,4758.9,4757.7,30.81515273]
[1757735461737,0.002,4758.9,4757.7,4.25875273]
[1757735462310,0.4659,4758.8,4757.7,3.0]
[1757735462816,0.792,4758.7,4757.6,1.612]
[1757735463016,0.792,4758.7,4757.3,0.001]
[1757735463017,0.3031,4757.7,4757.3,0.001]
[1757735465446,0.792,4758.6,4757.3,0.001]
[1757735465622,2.32583177,4758.6,4757.3,0.001]
[1757735466845,0.792,4758.4,4757.3,0.001]
[1757735467212,0.3031,4757.4,4757.3,0.001]
[1757735468311,0.4659,4757.9,4757.3,0.001]
[1757735468847,2.3249,4758.3,4757.3,0.001]
[1757735468848,0.792,4758.2,4757.3,0.001]
[1757735469017,1.21048318,4758.2,4757.3,0.001]
[1757735469218,0.41848318,4758.2,4757.3,0.001]
[1757735469414,0.4659,4758.5,4757.3,0.02202032]
[1757735469415,1.2579,4758.5,4757.3,0.02202032]
[1757735470421,1.2579,4758.5,4757.3,0.001]
[1757735471216,0.792,4758.5,4757.3,0.001]
[1757735471544,1.06793177,4758.6,4757.3,0.001]
[1757735471545,0.3031,4757.4,4757.3,0.001]
[1757735471912,0.769,4757.4,4757.3,0.001]
[1757735472115,3.0939,4757.4,4757.3,0.001]
[1757735472713,0.769,4757.4,4757.3,0.001]
[1757735473247,0.3031,4757.4,4757.3,0.001]
[1757735476233,0.7616,4757.4,4757.3,0.001]
[1757735477163,0.3031,4757.4,4757.3,0.001]
[1757735477562,0.7616,4757.4,4757.3,0.001]
[1757735477973,3.2027,4757.4,4757.3,0.001]
[1757735478378,3.52297,4757.4,4757.3,0.001]
[1757735478743,6.41695848,4757.4,4757.3,0.001]
[1757735481930,4.31497,4757.4,4757.3,0.001]
[1757735482567,10.25995848,4757.4,4757.3,0.001]
[1757735485871,4.31497,4757.4,4757.3,0.001]
[1757735486038,10.25995848,4757.4,4757.3,0.001]
[1757735494975,10.45588123,4757.4,4757.3,0.001]
[1757735495358,10.65182198,4757.4,4757.3,0.001]
[1757735496045,6.80882198,4757.4,4757.3,0.001]
[1757735496246,10.45288123,4757.4,4757.3,0.001]
[1757735497077,6.61288123,4757.4,4757.3,0.001]
[1757735497376,10.45188123,4757.4,4757.3,0.001]
[1757735497545,6.62288123,4757.4,4757.3,0.001]
[1757735497749,10.26595848,4757.4,4757.3,0.001]
[1757735498374,6.57435848,4757.4,4757.3,0.001]
[1757735498682,7.82485848,4757.4,4757.3,0.001]
[1757735498845,10.26595848,4757.4,4757.3,0.001]
[1757735500146,7.36635848,4757.4,4757.3,0.001]
[1757735500347,0.33027,4757.4,4757.3,0.2983]
[1757735500665,0.33027,4757.4,4757.3,3.2188]
[1757735500666,3.848,4757.4,4757.3,3.2188]
[1757735501782,4.64,4757.4,4757.3,3.2188]
[1757735501976,4.64,4757.4,4757.3,0.7412]
[1757735502385,0.802,4757.4,4757.3,0.7412]
[1757735502586,4.64,4757.4,4757.3,0.2983]
[1757735502880,7.20598848,4757.4,4757.3,0.2983]
[1757735503048,5.104,4757.4,4757.3,0.2983]
[1757735503446,7.20598848,4757.4,4757.3,0.2983]
[1757735503649,7.20598848,4757.4,4757.3,0.001]
[1757735503892,7.50258848,4757.4,4757.3,0.001]
[1757735504393,10.40218848,4757.4,4757.3,0.001]
[1757735504547,7.50258848,4757.4,4757.3,0.001]
[1757735504751,7.50158848,4757.4,4757.3,0.001]
[1757735505979,7.94958848,4757.4,4757.3,0.001]
[1757735506187,10.23658848,4757.4,4757.3,0.001]
[1757735506364,10.43286172,4757.4,4757.3,0.001]
[1757735506886,7.20398848,4757.4,4757.3,0.001]
[1757735507070,10.30188848,4757.4,4757.3,0.001]
[1757735507473,10.49824322,4757.4,4757.3,0.001]
[1757735509049,10.92492211,4757.4,4757.3,0.001]
[1757735509383,4.27682211,4757.4,4757.3,0.001]
[1757735509592,8.11182211,4757.4,4757.3,0.001]
[1757735510096,10.92392211,4757.4,4757.3,0.001]
[1757735515001,10.92192211,4757.4,4757.3,0.001]
[1757735515303,8.11332211,4757.4,4757.3,0.001]
[1757735515777,10.92542211,4757.4,4757.3,0.001]
[1757735516465,8.56392211,4757.4,4757.3,0.001]